Cogmind - Beta 15 @@@ ROGUE MODE // 2025.06.18 @ 22:04:46 Player: Zaros426 Result: Destroyed by NA-DGL(R) with Subdweller Machine Gun Performance ------------- Evolutions (0) 0 Regions Visited (3) 600 Robots Destroyed (37) 185 Value Destroyed (687) 687 Prototype IDs (1) 20 Alien Tech Used (0) 0 Bonus (0) 0 TOTAL SCORE: 1492 Bonus ------- None Cogmind --------- Core Integrity 0/250 Matter 172/300 Energy 42/100 System Corruption 0% Temperature Cool (0) Movement Treading (160) Location -10/Subcaves Parts ------- > --- POWER (1) -------- (None) > --- PROPULSION (2) --- Light Treads Light Treads > --- UTILITY (2) ------ (None) > --- WEAPON (2) ------- Improved EM Shotgun Assault Cannon > --- INVENTORY (5) ---- Armored Wheel Large Storage Unit Light Armor Plating Particle Gun Peak State ------------ > --- POWER ------------ Ion Engine > --- PROPULSION ------- Light Treads Armored Wheel > --- UTILITY ---------- Huge Storage Unit Improved Targeting Computer > --- WEAPON ----------- Improved EM Shotgun Improved EM Shotgun > --- INVENTORY -------- Light Treads Light Treads Light Treads Light Treads Armored Wheel Large Storage Unit High-capacity Matter Pod Seismic Detector Light Armor Plating Improved EM Shotgun Beam Cannon Beam Cannon Light Cannon Grenade Launcher Grenade Launcher Datajack Mining Laser [Rating: 15] Favorites ----------- Power Ion Engine Engine Ion Engine Propulsion Light Treads Treads Light Treads Wheel Armored Wheel Utility Improved Targeting Computer Device Seismic Detector Storage Huge Storage Unit Processor Improved Targeting Computer Protection Scrap Shield Weapon Improved EM Shotgun Energy Gun Improved EM Shotgun Energy Cannon Beam Cannon Ballistic Gun Light Assault Rifle Ballistic Cannon Light Cannon Launcher Grenade Launcher Special Weapon Mining Laser Build | -11 -10 -10 -10 ------- Run | Yrd Mat Min Sub Slots Evolved . | . . . . Power . | . . . . Propulsion . | . . . . Utility . | . . . . Weapon . | . . . . Parts Attached 27 | 5 12 7 3 Power 2 | . 1 1 . Engine 2 | . 1 1 . Core . | . . . . Reactor . | . . . . Propulsion 6 | 2 3 . 1 Treads 5 | 2 2 . 1 Leg . | . . . . Wheel 1 | . 1 . . Hover . | . . . . Flight . | . . . . Utility 5 | 1 3 . 1 Device 1 | 1 . . . Storage 2 | . 2 . . Processor 1 | . 1 . . Hackware . | . . . . Protection 1 | . . . 1 Artifact . | . . . . Weapon 14 | 2 5 6 1 Energy Gun 5 | 2 2 1 . Energy Cannon 2 | . . 2 . Ballistic Gun 1 | . 1 . . Ballistic Cannon 2 | . . 1 1 Launcher 3 | . 1 2 . Special Weapon 1 | . 1 . . Impact Weapon . | . . . . Slashing Weapon . | . . . . Piercing Weapon . | . . . . Special Melee Weapon . | . . . . Unidentified Prototypes 1 | . 1 . . Parts Lost 10 | . 2 5 3 Power 2 | . . 2 . Propulsion 2 | . . 1 1 Utility 1 | . . . 1 Weapon 5 | . 2 2 1 Highest Loss Streak 4 | . 1 4 3 To Critical Strikes . | . . . . Average Backups 14 | 2 10 17 15 Power . | . . . . Propulsion 3 | . 1 4 2 Utility 5 | . 3 7 8 Weapon 4 | 1 4 5 3 Tool/Special . | . . . . Unused Backups 14 | . 3 . 11 Power . | . . . . Propulsion 1 | . . . 1 Utility 9 | . 1 . 8 Weapon 2 | . 1 . 1 Tool/Special 2 | . 1 . 1 Average Slot Usage (%) 94 | . 94 94 76 Engine 10 | . 12 9 . Treads 19 | . 24 13 22 Wheel 8 | . 2 14 5 Device 1 | . 3 . . Storage 12 | . 10 14 8 Processor 13 | . 12 14 8 Energy Gun 14 | . 21 8 2 Energy Cannon 6 | . . 12 5 Ballistic Cannon 3 | . . 6 11 Special Weapon 2 | . 4 . . Peak Build Rating 15 | 5 15 14 14 Average Rating 12 | 3 11 12 12 On Entrance 7 | . 4 12 14 Naked Turns . | . . . . Heaviest Build 91 | 3 91 91 86 Greatest Support 40 | 3 40 12 40 Greatest Overweight (x) 7 | . 7 7 7 Average Overweight (x) 3 | . 1 7 5 Largest Inventory Capacity 25 | 5 25 25 25 Average Capacity 19 | 5 14 25 15 Most Carried 20 | 5 17 20 19 Average Carried 14 | 2 10 17 12 Final Capacity 25 | 5 25 25 5 Final Carried 19 | 5 16 19 4 Class Distribution -------------------- 100% | Mutant Dominant Class ---------------- Mutant | -10/Materials Mutant | -10/Mines Mutant | -10/Subcaves Resources | -11 -10 -10 -10 ----------- Run | Yrd Mat Min Sub Matter Collected 956 | 250 429 277 . Remotely . | . . . . Salvage Created 1207 | 143 791 244 29 Parts 88 | 14 57 16 1 Haulers Intercepted 2 | . 2 . . Recyclers Shooed 1 | . 1 . . Parts Field Recycled . | . . . . Retrieved Matter . | . . . . Parts Self-Destructed . | . . . . Prevented . | . . . . Kills | -11 -10 -10 -10 ------- Run | Yrd Mat Min Sub Combat Hostiles Destroyed 26 | . 14 11 1 Guns 8 | . 8 . . Cannons 7 | . . 7 . AOE 10 | . 5 4 1 Classes Destroyed 11 | 2 6 2 1 Worker 2 | . . 2 . Builder 3 | . 1 2 . Tunneler 6 | 4 1 1 . Hauler 2 | . 2 . . Recycler 2 | 1 1 . . Operator 2 | . 2 . . Watcher 3 | . 3 . . Swarmer 6 | . 6 . . Grunt 10 | . 8 2 . Subdweller 1 | . . . 1 Assembled 9 | . . 9 . Best Kill Streak 10 | 3 6 10 1 Combat Bots Only 9 | . 4 9 1 Max Kills in Single Turn 2 | 1 2 2 1 Gunslinging . | . . . . Exploded 2 | . 2 2 1 Melee . | . . . . Uniques/NPCs Destroyed . | . . . . Combat | -11 -10 -10 -10 -------- Run | Yrd Mat Min Sub Hostile Shots Fired 141 | . 42 65 34 Missed 42 | . 13 21 8 Hits 99 | . 29 44 26 Melee 4 | . . 4 . Projectile 95 | . 29 40 26 AOE 3 | . . 1 2 Critical Strikes 1 | . . 1 . Part Disruptions 1 | . . 1 . Damage Taken 1797 | . 390 715 692 Core 270 | . 8 83 179 Absorbed by Shields . | . . . . Regen/Repaired (Parts) 102 | . 102 . . Core Remaining (%) 100 | 100 . . . Volleys Fired 130 | 14 70 35 11 Largest 2 | 1 2 2 2 Hottest 120 | 40 100 120 97 Shots Fired 193 | 14 102 64 13 Gun 94 | 14 78 2 . Cannon 68 | . . 56 12 Launcher 10 | . 3 6 1 Special 21 | . 21 . . Kinetic 45 | . 14 21 10 Thermal 72 | 14 21 35 2 Explosive 10 | . 3 6 1 Electromagnetic 66 | . 64 2 . Robot Hit Streak 14 | 6 14 8 9 Robot Miss Streak 4 | 2 4 3 . Penetration Max . | . . . . Secondary Targets 2 | . 2 . . Max Gunslinging Chain 1 | . 1 . . Shots Hit Robots 114 | 10 55 40 9 Core Hits 70 | 6 37 23 4 Critical Kills . | . . . . Critical Parts Destroyed . | . . . . Critical Strikes . | . . . . Melee Attacks . | . . . . Impact . | . . . . Slashing . | . . . . Piercing . | . . . . Sneak Attacks . | . . . . Combat Hostiles . | . . . . Follow-up Attacks . | . . . . Damage Inflicted 2798 | 112 1284 965 437 Guns 1044 | 112 909 23 . Cannons 901 | . . 635 266 Explosions 853 | . 375 307 171 Melee . | . . . . Ramming . | . . . . Kinetic 514 | . 52 213 249 Thermal 768 | 112 217 422 17 Explosive 636 | . 158 307 171 Electromagnetic 880 | . 857 23 . Impact . | . . . . Slashing . | . . . . Piercing . | . . . . Highest Corruption . | . . . . Average Corruption . | . . . . Corruption Purged . | . . . . Corruption Blocked . | . . . . Overload Shots . | . . . . Overflow Damage 23 | . 21 2 . Projectiles 2 | . . 2 . Explosions 21 | . 21 . . Melee . | . . . . Knockbacks 9 | . . 5 4 Impact . | . . . . Kinetic 9 | . . 5 4 Secondary . | . . . . Self-Inflicted Damage 57 | . . 1 56 Shots 2 | . . 1 1 Rammed . | . . . . Targets Rammed . | . . . . Kicked . | . . . . Crushed . | . . . . Highest Temperature 300 | . 195 300 . Average Temperature 57 | . 41 84 . Received Heat Transfer 277 | . 147 106 24 Effects 4 | . . 4 . Energy Bleed 1 | . . 1 . Interference 3 | . . 3 . Siege Activations . | . . . . Martial Activations . | . . . . Shielding Activations . | . . . . Robots Disrupted . | . . . . Combat Hostiles . | . . . . Robots Corrupted 1 | . 1 . . Combat Hostiles 1 | . 1 . . Parts Fried 4 | . 4 . . Impact Corruptions . | . . . . Robots Melted . | . . . . Combat Hostiles . | . . . . Parts Melted 1 | . . 1 . Heat Transferred 1475 | 250 300 888 37 Parts Sabotaged . | . . . . Parts Stolen . | . . . . Parts Stripped . | . . . . Power Chain Reactions 4 | . 4 . . Alert | -11 -10 -10 -10 ------- Run | Yrd Mat Min Sub Maximum Alert Level . | . . . . Low Security (%) 100 | 100 100 100 . Level 1 . | . . . . Level 2 . | . . . . Level 3 . | . . . . Level 4 . | . . . . Level 5 . | . . . . High Security . | . . . . Max Security . | . . . . Peak Influence 134 | 10 134 50 . Initial 36 | . . 36 . Average 27 | 3 50 7 . Influence Increases 819 | 25 658 136 . Destroy 0b10 Robot/C 320 | . 280 40 . Destroy 0b10 Robot/NC 100 | 25 50 25 . Destroy Leader 80 | . 70 10 . Successful Hack 15 | . 15 . . Select Force Hacks 60 | . 60 . . Disable Machine 60 | . 30 30 . Destroy Structure 79 | . 48 31 . Lose Combat Pursuer 105 | . 105 . . Influence Decreases 819 | 25 564 214 16 Entered New Map 67 | . . 58 9 Time Decay 713 | 25 544 144 . Lost Part 39 | . 20 12 7 Squads Dispatched 3 | . 3 . . Investigation 2 | . 2 . . Extermination . | . . . . Reinforcement 1 | . 1 . . Assault . | . . . . Garrison . | . . . . Intercept . | . . . . Searches Triggered . | . . . . Construction Impeded . | . . . . Haulers Reinforced . | . . . . Active Scanning Responses . | . . . . Cargo Convoy Interrupts . | . . . . Stealth | -11 -10 -10 -10 --------- Run | Yrd Mat Min Sub Distress Signals . | . . . . Communications Jammed . | . . . . Distress Signals . | . . . . Times Spotted 55 | . 28 22 5 Peak Tracking Total 13 | . 4 13 5 Tactical Retreats 4 | . 4 . . Traps | -11 -10 -10 -10 ------- Run | Yrd Mat Min Sub Traps Triggered 3 | . 1 2 . Indirectly . | . . . . Trap Hack Attempts . | . . . . Triggered . | . . . . Disarmed . | . . . . Reprogrammed . | . . . . Reused . | . . . . Traps Extracted . | . . . . Installed . | . . . . Triggered . | . . . . Machines | -11 -10 -10 -10 ---------- Run | Yrd Mat Min Sub Machines Disabled 4 | . 2 2 . Max in Single Turn 1 | . 1 1 . Machines Repaired . | . . . . Machines Dismantled . | . . . . Machines Sabotaged . | . . . . Overloaded Fab Kills . | . . . . Hacking | -11 -10 -10 -10 --------- Run | Yrd Mat Min Sub Machines Accessed 11 | . 9 2 . Terminals 6 | . 6 . . Fabricators . | . . . . Repair Stations 1 | . 1 . . Recycling Units 2 | . 2 . . Scanalyzers . | . . . . Garrison Access . | . . . . Total Hacks 20 | . 18 2 . Successful 10 | . 8 2 . Failed 10 | . 10 . . Catastrophic 4 | . 4 . . Database Lockouts . | . . . . Manual 11 | . 11 . . Terminals 13 | . 13 . . Fabricators . | . . . . Repair Stations 3 | . 3 . . Recycling Units 2 | . 2 . . Scanalyzers . | . . . . Garrison Access . | . . . . Terminal Hacks 3 | . 1 2 . Open Door 2 | . . 2 . Locate Traps 1 | . 1 . . Fabricator Hacks . | . . . . Repair Station Hacks 2 | . 2 . . Scan Component 1 | . 1 . . Repair 1 | . 1 . . Recycling Unit Hacks . | . . . . Scanalyzer . | . . . . Garrison Access Hacks . | . . . . Unauthorized Hacks 5 | . 5 . . Terminals 3 | . 3 . . Skim 3 | . 3 . . Fabricators . | . . . . Repair Stations . | . . . . Recycling Units 2 | . 2 . . Tunnel 2 | . 2 . . Scanalyzers . | . . . . Garrison Access . | . . . . Data Cores Recovered . | . . . . Used . | . . . . Hacking Detections 7 | . 7 . . Full Trace Events 3 | . 3 . . Feedback Events . | . . . . Feedback Blocked . | . . . . Robot Schematics Acquired . | . . . . Robots Built . | . . . . Authchips . | . . . . Time . | . . . . Total Robot Build Rating . | . . . . Part Schematics Acquired . | . . . . Parts Built . | . . . . Authchips . | . . . . Time . | . . . . Total Part Build Rating . | . . . . Parts Repaired 1 | . 1 . . Time 26 | . 26 . . Parts Recycled . | . . . . Recycled Matter . | . . . . Retrieved Matter . | . . . . Retrieved Components . | . . . . Parts Scanalyzed . | . . . . Part Schematics Acquired . | . . . . Parts Damaged . | . . . . Bothacking | -11 -10 -10 -10 ------------ Run | Yrd Mat Min Sub Used RIF Installer . | . . . . Robots Hacked . | . . . . Non-combat . | . . . . Combat . | . . . . Robot Hacks Applied . | . . . . Relay Couplers Released . | . . . . Fabnet Peak Effective % . | . . . . Robots Rewired . | . . . . Allies Hacked . | . . . . Hacks Repelled . | . . . . Allies | -11 -10 -10 -10 -------- Run | Yrd Mat Min Sub Total Allies 3 | . . 3 . Largest Group 3 | . . 3 . Highest-Rated Group 40 | . . 40 . Highest-Rated Ally 16 | . . 16 . Total Orders . | . . . . Ally Attacks 4 | . . 4 . Total Damage 58 | . . 58 . Kills . | . . . . Allies Corrupted . | . . . . Allies Melted . | . . . . Intel | -11 -10 -10 -10 ------- Run | Yrd Mat Min Sub Active Infowar (turns) 440 | 5 435 . . Seismic 440 | 5 435 . . Robot Analysis Total . | . . . . Derelict Logs Recovered 1 | . . 1 . Drone Launches . | . . . . Drone Recoveries . | . . . . Exploration | -11 -10 -10 -10 ------------- Run | Yrd Mat Min Sub Turns Passed 3880 | 80 1805 1953 42 Spaces Moved 1935 | 48 987 895 5 Core 338 | 48 290 . . Treads 527 | . 526 . 1 Legs . | . . . . Wheels 1070 | . 171 895 4 Hover . | . . . . Flight . | . . . . Fastest Speed 50 | 50 50 195 160 Average Speed 160 | 50 133 195 188 Slowest Speed 195 | 50 195 195 195 Overloaded Moves . | . . . . Propulsion Burnouts . | . . . . Robots Hopped . | . . . . Potential Cave-ins . | . . . . Cave-ins Triggered . | . . . . Exploration Rate (%) 50 | 3 98 100 2 Regions Visited 3 Branch Regions 2 Pre-discovered Areas 3 | . 2 1 . Known Exits Taken . | . . . . Unknown Exits Taken 3 | 1 1 1 . Scrap Searched 2 | . . 2 . Spaces Dug 24 | . 15 9 . Terrain Destroyed 94 | . 54 35 5 Melee . | . . . . Projectile 18 | . 18 . . AOE 76 | . 36 35 5 Terrain Rammed . | . . . . Walls Destroyed . | . . . . Machines Disabled . | . . . . Actions | -11 -10 -10 -10 --------- Run | Yrd Mat Min Sub Total 2476 | 88 1328 1035 25 Wait 319 | 15 225 79 . Move 1932 | 47 986 894 5 Hop . | . . . . Pick Up 35 | 6 20 9 . Fast Attach 10 | 3 3 3 1 Attach 14 | 2 4 6 2 Detach 1 | 1 . . . Swap 23 | . 13 7 3 Drop 12 | . 7 2 3 Fire 130 | 14 70 35 11 Melee . | . . . . Ram . | . . . . Kick . | . . . . Crush . | . . . . Escape Stasis . | . . . . Rewire . | . . . . Trap . | . . . . Miscellaneous . | . . . . Route ------- -11/Scrapyard -10/Materials (discovered 5 exits: [*Mat x3] / *Min / [*Sub]) -10/Mines (discovered 3 exits: [*Mat x2] / [*Sub]) -10/Subcaves History --------- Turn | Location | Event 9 | -11/Scrapyard | Discovered new exit (range 15) 81 | -11/Scrapyard | Entered Materials 290 | -10/Materials | Discovered new exit (range 4) 300 | -10/Materials | Build established: Mutant 497 | -10/Materials | Discovered new exit (range 14) 742 | -10/Materials | Discovered new exit (range 7) 860 | -10/Materials | Repaired Lgt. Treads 1049 | -10/Materials | Discovered new exit (range 9) 1143 | -10/Materials | Discovered new exit (range 13) 1886 | -10/Materials | Entered Mines 2073 | -10/Mines | Assisted by bots powering up and referring to "LRC-V3" 2160 | -10/Mines | Discovered new exit (range 16) 2266 | -10/Mines | Discovered new exit (range 15) 2345 | -10/Mines | Assembled infested the area 2350 | -10/Mines | Assisted by a Guerilla fighting off Assembled 2410 | -10/Mines | Lost 4 allies 2442 | -10/Mines | Lost 4 parts (1p1n2w) 2452 | -10/Mines | Destroyed 9 combat bots 2459 | -10/Mines | Found the Drone Emporium 2499 | -10/Mines | Found Prototype Device 2702 | -10/Mines | Met a Derelict who couldn't figure out how to use a Trap Extractor 2844 | -10/Mines | Discovered new exit (range 6) 3048 | -10/Mines | Learned location of Mines (-8) 3839 | -10/Mines | Entered Subcaves 3840 | -10/Subcaves | Approached by a straggling Scientist 3854 | -10/Subcaves | Ambushed by Subdweller buried in earth 3854 | -10/Subcaves | Ambushed by Subdweller buried in earth 3854 | -10/Subcaves | Ambushed by Subdweller buried in earth 3860 | -10/Subcaves | Core integrity fell below 50% 3863 | -10/Subcaves | Core integrity fell below 20% 3881 | -10/Subcaves | Destroyed by NA-DGL(R) with Subdweller Machine Gun Last Messages --------------- back to the UFD." 03853_ Lgt. Treads destroyed. 03855_ KM-U23(R): "NOSTUCKSUB!" 03855_ NA-DGL(R): "THANKSYOU!" 03855_ 75-HCG(R): "ARGHSUB!" 03857_ Dropped Arm. Wheel. 03859_ KM-U23(R) destroyed. 03860_ The unstable cave ceiling collapses. 03861_ Dropped Huge Storage Unit. 03862_ Discarded Imp. Targeting Computer. 03864_ Acquired Scrap Shield. 03867_ NA-DGL(R) knocked back. 03869_ 75-HCG(R) knocked back. 03870_ NA-DGL(R) affixes Scrap Shield Fragment to Scrap Shield. 03871_ 75-HCG(R) knocked back. 03873_ NA-DGL(R) knocked back. 03876_ Subatomizers dissect the Arm. Wheel, destroying it. 03879_ Scrap Shield destroyed. 03880_ The unstable cave ceiling collapses. 03880_ Imp. Grenade Launcher destroyed. Map ----- +----------------------------------------------------+ | | | | | | | | | | | | | | | ?????????????????????????????????????????????????? | | ?????????????????????????????????????????????????? | | ?????????????????????????????????????????????????? | | ?????????????????????????????????????????????????? | | ?????????????????????????????????????????????????? | | ?????????????????????????????????????????????????? | | ?????????????????????????????????????????????????? | | ?????????????????????????????????????????????????? | | ?????????????????????????????????????????????????? | | ?????????????????????????????????????????????????? | | ?????????????????????????????????????????????????? | | ?????????????????????????????????????????????????? | | ?????????????????????????????????????????????????? | | ??????????????????????##?????????????????????????? | | ????????????????????### #??##?#?????"###?????????? | | ????????????????????# ;;;## # ####; ##????????? | | ????????????????????#; ; ;; ????????? | | ????????????????????#; !|%; ;;R #???????? | | ???????????????????## % @!!/ ;; % ???????? | | ???????????????????# %!RR!! ;;#????????????? | | ??????????????????# # !]! ; ;;##????????????? | | ??????????????????# # =! ;;;; #?????????????? | | ??????????????????#### # #####?????????????? | | ?????????????????????## # #?????????????????? | | ??????????????????????##;#;## ##?????????????????? | | ??????????????????????? ;? ;? ??????????????????? | | ???????????????????????*&?= ?? ?????????????????? | | ???????????????????????";?! ?? ????????????????? | | ???????????????????????";? ??? ????????????????? | | ??????????????????????###? ?? ???????????????? | | ??????????????????????????? ??? ??????????????? | | ??????????????????????????? ??? ??????????????? | | ???????????????????????????# ???? ???????????????? | | ?????????????????????????????????????????????????? | | ?????????????????????????????????????????????????? | | ?????????????????????????????????????????????????? | | ?????????????????????????????????????????????????? | | ?????????????????????????????????????????????????? | | ?????????????????????????????????????????????????? | | ?????????????????????????????????????????????????? | | ?????????????????????????????????????????????????? | | ?????????????????????????????????????????????????? | | ?????????????????????????????????????????????????? | +----------------------------------------------------+ Best States ------------- Heat Dissipation 25 Energy Generation 10 Energy Capacity 250 Matter Stores 300 Matter Capacity 300 Sight Range 16 Terrain Scan Density 10 Armor Coverage 800 Evasion (%) 50 Targeting Accuracy 6 Recoil Reduction 2 Item Schematics ----------------- None Robot Schematics ------------------ None Fabricated ------------ Nothing Repaired ---------- Lgt. Treads | 27% | -10/Materials Alien Tech Used ----------------- None Achievements -------------- None Challenges ------------ None Game ------ Seed ReinforcedSalvageMatrix Manual? 0 Play Time 00:20:50 Cumulative 305.3 hours Start 2025.06.18 @ 21:40:29 End 2025.06.18 @ 22:04:46 Sessions 1 Manual Loads 0 Difficulty Rogue Special Mode None Game No. 156 Rogue 156 Adventurer 0 Explorer 0 Win Type - Total 1 Types 0/0/0/0/1/0/0/0/0/0 Lore% 78 Gallery% 76 Achievement% 65 Wizard Run 0 Options --------- Layout 0 ASCII 0 Keyboard 0 Movement Mouse Keybinds 0 Fullscreen 1 Font 24/Smallcaps Map View 183x50 Zoom Use 0% Tactical HUD 1 Map Filters NONE Filters NONE Steam 0 RUN: 16fd2d30-bcd8-453f-a82e-8f184acbc883